bitfinex/quotes_ETHUSD_20220220
["timestamp","ask_amount","ask_price","bid_price","bid_amount"]
[1645360831213,0.00243696,2640.3,2640.1,2.8427334]
[1645360832212,0.96026545,2640.4,2640.1,2.8427334]
[1645360832213,0.96026545,2640.4,2640.1,1.89517]
[1645360832415,0.00245496,2640.3,2640.1,1.89517]
[1645360832672,0.00245496,2640.3,2640.2,0.3]
[1645360833267,0.96026545,2640.5,2640.2,0.3]
[1645360833569,0.00245494,2640.4,2640.2,0.3]
[1645360833768,0.96272039,2640.4,2640.2,0.3]
[1645360834067,0.96272039,2640.4,2640.1,1.0]
[1645360834269,0.96026545,2640.3,2640.1,1.0]
[1645360834469,0.96026545,2640.3,2640.0,2.8951303]
[1645360834672,0.96026545,2640.3,2640.0,2.8427403]
[1645360834872,0.96026545,2640.2,2640.0,2.8427403]
[1645360835070,0.96026545,2640.2,2640.0,0.94761]
[1645360835673,0.96026545,2640.1,2639.7,3.79059]
[1645360836074,0.96026545,2640.1,2639.7,4.7382562]
[1645360836324,0.0024535,2640.3,2639.7,4.7382562]
[1645360836713,1.09459951,2640.2,2639.7,4.7382562]
[1645360837113,0.00245344,2640.3,2639.8,1.89527]
[1645360837314,0.00245344,2640.3,2639.8,3.19527]
[1645360838215,1.09247628,2640.3,2639.8,3.19527]
[1645360838417,2.0551952,2640.3,2639.8,3.19527]
[1645360838623,2.0551952,2640.3,2639.8,2.19527]
[1645360838815,2.0551952,2640.3,2639.8,1.24766]
[1645360839415,2.05274173,2640.3,2639.8,1.24766]
[1645360839616,0.96026545,2640.2,2639.8,0.3]
[1645360840472,0.72044503,2640.0,2639.8,0.3]
[1645360841674,0.72044503,2639.9,2639.8,0.3]
[1645360842378,0.72044503,2640.0,2639.8,0.3]
[1645360842574,0.72044503,2639.9,2639.8,0.3]
[1645360843375,0.72044503,2639.9,2639.7,3.79059]
[1645360843376,0.72044503,2639.9,2639.7,3.11951004]
[1645360843574,0.80795846,2639.9,2639.7,4.06717854]
[1645360843818,0.08751343,2639.8,2639.7,4.06717854]
[1645360845415,0.08751343,2639.8,2639.7,4.00731754]
[1645360845918,0.08751343,2639.8,2639.7,3.11951004]
[1645360847316,0.08751343,2639.8,2639.7,4.10622285]
[1645360847767,0.08751343,2639.8,2639.7,9.43874915]
[1645360847968,0.08751343,2639.8,2639.7,5.93874915]
[1645360848166,0.08751343,2639.8,2639.7,9.43874915]
[1645360848367,0.08751343,2639.8,2639.7,5.93874915]
[1645360848571,0.08751343,2639.8,2639.7,9.43874915]
[1645360849169,0.08751343,2639.8,2639.7,5.93874915]
[1645360849568,0.08751343,2639.8,2639.7,4.95203634]
[1645360849771,0.08751343,2639.8,2639.7,3.41951004]
[1645360849969,0.08751343,2639.8,2639.7,3.11951004]
[1645360854817,0.72044503,2640.0,2639.7,3.11951004]
[1645360854818,0.72044503,2640.0,2639.7,3.41951004]
[1645360855067,0.08050879,2639.9,2639.8,15.92698188]
[1645360855266,0.08308893,2640.3,2639.9,13.4449084]
[1645360855466,0.08049756,2640.2,2639.9,13.4449084]
[1645360855668,0.08049756,2640.1,2639.9,13.4449084]
[1645360855866,0.00258014,2640.3,2639.9,13.4449084]
[1645360855867,0.08049756,2640.0,2639.9,13.4449084]
[1645360856067,0.72044503,2640.4,2640.0,1.00132404]
[1645360856467,0.0025803,2640.3,2640.0,1.00132404]
[1645360856666,0.0025803,2640.3,2640.0,1.94877404]
[1645360857268,0.72044503,2640.4,2640.0,1.94877404]
[1645360857668,0.00244518,2640.3,2640.0,1.94877404]
[1645360857867,0.00244518,2640.3,2640.0,2.89622164]
[1645360858468,0.72044503,2640.4,2640.0,1.8948976]
[1645360858924,0.00244518,2640.3,2640.0,1.8948976]
[1645360859517,0.00244518,2640.3,2640.0,2.88358492]
[1645360859719,0.72044503,2640.4,2640.0,2.88358492]
[1645360859916,0.00244518,2640.3,2640.0,2.88358492]
[1645360861018,0.72044503,2640.4,2640.0,2.88358492]
[1645360861219,0.00245436,2640.3,2640.0,2.88358492]
[1645360862217,0.72044503,2640.4,2640.0,2.88358492]
[1645360862417,0.00245436,2640.3,2640.0,2.88358492]
[1645360863265,0.00245436,2640.3,2640.0,2.50047943]
[1645360863266,0.72044503,2640.3,2640.0,2.50047943]
[1645360863466,0.08050263,2640.2,2640.1,1.54696426]
[1645360863665,0.00245436,2640.3,2640.1,1.54696426]
[1645360863969,0.00245436,2640.3,2640.0,2.80047943]
[1645360864566,0.72044503,2640.4,2640.0,2.80047943]
[1645360864766,0.00245358,2640.3,2640.0,2.80047943]
[1645360865169,0.00245358,2640.3,2640.1,1.54806831]
[1645360865170,0.72289861,2640.3,2640.1,1.54806831]
[1645360865766,0.80094766,2640.3,2640.1,1.54806831]
[1645360865967,0.08050263,2640.2,2640.1,1.54806831]
[1645360866166,0.08050263,2640.2,2640.1,2.63937523]
[1645360866619,0.72289864,2640.3,2640.1,2.63937523]
[1645360866822,0.72289864,2640.3,2640.1,1.09130692]
[1645360867021,0.72044503,2640.3,2640.1,1.09130692]
[1645360867223,0.80094766,2640.2,2640.1,1.09130692]
[1645360867421,0.72044503,2640.2,2640.1,2.63988067]
[1645360868221,0.08050263,2640.2,2640.1,2.63988067]
[1645360868617,0.72289868,2640.3,2640.1,2.63988067]
[1645360868922,0.72289868,2640.3,2640.1,1.09130692]
[1645360869320,0.80094766,2640.2,2640.1,1.09130692]
[1645360869518,0.72044503,2640.2,2640.1,1.09130692]
[1645360869818,0.80094766,2640.2,2640.1,1.09130692]
[1645360870061,0.08050263,2640.2,2640.1,2.63976271]
[1645360870261,0.80094766,2640.2,2640.1,2.63976271]
[1645360870462,0.08050263,2640.2,2640.1,2.63976271]
[1645360870862,0.72044503,2640.2,2640.1,2.63976271]
[1645360871361,0.08050263,2640.2,2640.1,2.63976271]
[1645360871565,0.72044503,2640.2,2640.1,1.09130692]
[1645360871767,0.08050263,2640.2,2640.1,2.64532059]
[1645360871963,0.72044503,2640.3,2640.2,0.9474509]
[1645360871964,0.72289867,2640.3,2640.2,0.9474509]
[1645360872164,0.72044503,2640.5,2640.2,17.54579909]
[1645360872365,0.72044503,2640.6,2640.2,15.9974509]
[1645360872562,0.72044503,2640.6,2640.2,4.7474509]
[1645360872764,0.72044503,2640.6,2640.4,0.94735]
[1645360872964,0.72044503,2640.6,2640.4,4.44735]
[1645360873162,0.72044503,2640.6,2640.5,0.9810924]
[1645360873564,0.96026545,2640.9,2640.6,13.0]
[1645360873831,0.96026545,2641.2,2640.9,11.55]
[1645360874019,0.96026545,2641.4,2640.9,12.49717]
[1645360874425,0.96026545,2641.5,2640.9,12.49717]
[1645360874819,0.96026545,2641.5,2640.9,12.79717]
[1645360875219,0.96026545,2641.5,2641.3,1.11171006]
[1645360875420,0.96026545,2641.5,2641.3,3.95277906]
[1645360875820,0.96026545,2641.6,2641.3,4.15547906]
[1645360876023,0.96026545,2641.8,2641.3,4.15547906]
[1645360876819,0.00266183,2641.7,2641.3,4.15547906]
[1645360877963,0.00266185,2641.6,2641.3,4.15547906]
[1645360878364,0.00266185,2641.6,2641.4,3.5]
[1645360879067,0.96026545,2642.0,2641.4,3.5]
[1645360879265,0.00266185,2641.6,2641.4,3.5]
[1645360879467,0.00266185,2641.6,2641.5,0.4312]
[1645360879674,0.00266185,2641.6,2641.5,1.4312]
[1645360879869,0.00266185,2641.6,2641.5,13.7391]
[1645360880071,0.96026545,2642.4,2641.9,0.94683]
[1645360880268,0.96026545,2642.4,2642.0,0.9468268]
[1645360880468,0.01064574,2642.1,2642.0,0.9468268]
[1645360881513,0.96026545,2642.5,2642.0,0.9468268]
[1645360881714,1.53711644,2642.6,2642.0,0.9468268]
[1645360881916,1.53711644,2642.6,2642.1,4.44682]
[1645360882217,0.57685099,2642.6,2642.1,4.44682]
[1645360882411,0.57685099,2642.6,2642.1,0.94682]
[1645360882812,1.53711644,2642.6,2642.1,0.94682]
[1645360883214,0.57685099,2642.6,2642.1,0.94682]
[1645360883416,0.57685099,2642.6,2642.0,0.17731033]
[1645360883613,1.11031698,2642.7,2642.0,3.67731033]
[1645360884013,0.00266157,2642.4,2642.0,3.67731033]
[1645360884417,0.00266157,2642.4,2642.1,11.55]
[1645360884618,0.01064468,2642.8,2642.2,16.9432499]
[1645360884821,0.01064468,2642.8,2642.4,1.89331]
[1645360885071,0.96026545,2643.1,2642.5,0.94663]
[1645360885274,0.96026545,2643.4,2642.7,12.6350398]
[1645360885468,0.96026545,2643.4,2642.8,15.05]
[1645360885669,0.89874039,2643.5,2642.8,15.65]
[1645360885670,0.96026545,2643.5,2642.8,15.65]
[1645360885870,0.96026545,2643.6,2642.9,1.0]
[1645360886075,1.45733018,2643.8,2643.0,3.5]
[1645360886076,0.9717498,2643.8,2643.0,3.5]
[1645360886471,0.96026545,2643.7,2643.0,3.5]
[1645360886869,0.96026545,2643.7,2643.1,1.18315369]
[1645360887072,1.95464376,2643.8,2643.1,1.18315369]
[1645360887271,1.95464376,2643.8,2643.0,3.5]
[1645360887476,0.96026545,2643.7,2642.9,15.7659957]
[1645360887673,0.96026545,2643.7,2642.9,4.5159957]
[1645360887875,0.99437831,2643.8,2642.9,3.19278]
[1645360887876,0.96026545,2643.6,2642.9,3.19278]
[1645360888074,0.99437831,2643.8,2642.9,3.19278]
[1645360888075,0.96026545,2643.7,2642.9,3.19278]
[1645360888475,0.99437831,2643.8,2642.9,1.89278]
[1645360888476,1.95464376,2643.8,2642.9,1.89278]
[1645360888676,0.96026545,2643.6,2642.9,1.89278]
[1645360888920,0.00266122,2643.4,2642.9,1.89278]
[1645360889717,0.00266122,2643.4,2643.0,0.87980385]
[1645360889916,0.01148435,2643.8,2643.0,0.87980385]
[1645360890120,0.01148435,2643.8,2643.2,1.89269]
[1645360890121,0.00266127,2643.3,2643.2,1.89269]
[1645360890318,0.01064348,2643.7,2643.2,16.94269]
[1645360890717,0.01064348,2643.7,2643.3,14.4425849]
[1645360890920,0.01064348,2643.7,2643.4,0.6]
[1645360891121,0.01148435,2644.1,2643.6,11.54785113]
[1645360891324,0.96026545,2644.9,2643.8,11.54569943]
[1645360891517,0.96026545,2644.9,2644.0,11.53924042]
[1645360891720,0.96026545,2645.0,2644.0,11.53924042]
[1645360891916,0.96026545,2645.0,2644.2,11.53924042]
[1645360892118,0.87466077,2645.1,2644.3,12.43289367]
[1645360892420,1.14926545,2645.5,2644.6,0.945818]
[1645360892673,1.14926545,2645.5,2644.3,0.0108]
[1645360892674,1.32491161,2644.4,2644.3,0.0108]
[1645360895975,1.32491161,2644.4,2644.2,0.0108]
[1645360896827,1.32491161,2644.4,2644.2,0.9568595]
[1645360897025,1.32491161,2644.4,2644.3,0.00537378]
[1645360897426,1.32757247,2644.4,2644.3,0.00537378]
[1645360898226,1.32491161,2644.4,2644.3,0.00537378]
[1645360899326,1.32491161,2644.4,2644.3,0.01617378]
[1645360902276,0.00266084,2644.5,2644.4,14.0]
[1645360902476,0.00266084,2644.5,2644.4,12.49585]
[1645360902685,0.01064177,2644.9,2644.4,12.49585]
[1645360902879,0.01064177,2644.9,2644.6,1.15670028]
[1645360903078,1.19338088,2645.4,2644.6,1.15670028]
[1645360903283,1.14338088,2645.4,2644.6,1.15670028]
[1645360903944,1.14338088,2645.4,2644.7,1.89169]
[1645360905845,0.00266059,2645.2,2644.7,1.89169]
[1645360906244,0.00266059,2645.2,2644.8,0.0108]
[1645360906647,1.14338088,2645.4,2644.8,0.0108]
[1645360907049,0.00266061,2645.1,2644.8,0.0108]
[1645360907868,1.14338088,2645.4,2644.8,0.0108]
[1645360908071,0.00266063,2645.1,2644.8,0.95666]
[1645360908473,0.00266063,2645.1,2644.8,0.0108]
[1645360909071,1.14338088,2645.4,2644.8,2.8483531]
[1645360909271,0.00266063,2645.1,2644.8,2.8483531]
[1645360910269,1.14338088,2645.4,2644.8,2.8483531]
[1645360910469,0.00266063,2645.1,2644.8,2.8483531]
[1645360910670,0.00266063,2645.1,2644.8,1.9025]
[1645360910869,0.00266063,2645.1,2644.8,0.0108]
[1645360911519,1.14338088,2645.4,2644.8,0.0108]
[1645360911716,0.00266063,2645.1,2645.0,0.00526929]
[1645360911915,0.00266063,2645.1,2645.0,0.00279805]
[1645360912920,0.00266059,2645.2,2645.0,0.00279805]
[1645360913916,8.5,2645.3,2645.0,0.00279805]
[1645360914318,0.00243887,2645.2,2645.0,0.00279805]
[1645360915185,5.0,2645.1,2645.0,0.00279805]
[1645360915380,9.8046,2645.1,2643.3,3.78382]
[1645360915677,12.32,2644.7,2643.3,3.78382]
[1645360915877,0.189,2644.6,2643.3,3.78382]
[1645360916280,0.84479881,2644.1,2643.3,4.91164671]
[1645360916476,0.84479881,2644.1,2643.4,0.0108]
[1645360917079,4.22339403,2644.6,2643.6,0.94624]
[1645360917476,4.2112,2644.6,2643.6,0.94624]
[1645360917677,3.5,2644.5,2643.6,0.94624]
[1645360918076,1.00894777,2644.0,2643.6,0.94624]
[1645360918679,1.00894777,2644.0,2643.4,1.9033123]
[1645360919928,3.5,2644.5,2643.4,0.0108]
[1645360920131,4.22450153,2644.6,2643.4,0.0108]
[1645360920328,3.5,2644.5,2643.4,0.0108]
[1645360920529,4.22450153,2644.6,2643.6,1.89257]
[1645360921128,4.2112,2644.6,2643.7,0.0108]
[1645360921328,0.87444065,2644.5,2643.7,1.09403181]
[1645360921828,4.37444065,2644.5,2643.7,1.09403181]
[1645360922231,4.37444065,2644.5,2643.9,0.00486358]
[1645360923469,0.92848228,2644.1,2643.9,0.00486358]
[1645360923667,3.5,2644.5,2643.9,0.00486358]
[1645360924273,3.5,2644.5,2644.0,0.0108]
[1645360924469,9.46026545,2644.5,2644.0,0.0108]
[1645360924669,0.189,2644.4,2644.0,0.0108]
[1645360925070,0.96026545,2644.3,2644.0,0.0108]
[1645360925268,4.33798767,2644.2,2644.0,0.0108]
[1645360925468,0.83798767,2644.2,2644.0,0.0108]
[1645360926318,1.79825312,2644.2,2644.0,0.0108]
[1645360926920,0.96026545,2644.1,2644.0,0.00574214]
[1645360927532,0.83798767,2644.2,2644.0,0.00574214]
[1645360928323,0.96026545,2644.2,2644.0,0.00574214]
[1645360928723,0.96026545,2644.4,2644.0,0.00574214]
[1645360928919,4.99576811,2644.6,2644.0,0.00574214]
[1645360929120,0.96026545,2644.5,2644.0,0.00574214]
[1645360929522,0.94096393,2644.4,2644.0,0.00574214]
[1645360930176,0.96026545,2644.3,2644.0,0.00574214]
[1645360930775,0.96026545,2644.2,2644.0,0.00574214]
[1645360931479,0.96026545,2644.3,2644.0,0.00574214]
[1645360931675,4.46026545,2644.3,2644.0,0.00574214]
[1645360932076,0.96026545,2644.3,2644.0,0.00574214]
[1645360932275,0.96026545,2644.2,2644.0,0.00574214]
[1645360932677,0.96026545,2644.3,2644.0,0.00574214]
[1645360932978,0.96026545,2644.2,2644.0,0.00574214]
[1645360934826,0.96026545,2644.1,2644.0,0.00574214]
[1645360936728,1.44584583,2644.3,2644.0,0.00574214]
[1645360936934,0.9591221,2644.1,2644.0,0.00574214]
[1645360937429,1.00383486,2644.0,2643.7,0.01320722]
[1645360938472,1.96295696,2644.0,2643.7,0.01320722]
[1645360938975,1.96295696,2644.0,2643.6,0.90957722]
[1645360939579,1.00383486,2644.0,2643.6,0.90957722]
[1645360941176,0.9591221,2644.2,2643.6,0.90957722]
[1645360941824,0.9591221,2644.2,2643.4,1.89255]
[1645360942021,0.9591221,2644.2,2643.9,0.00736484]
[1645360942224,1.17230279,2644.1,2643.9,0.00736484]
[1645360943222,0.9591221,2644.2,2643.9,0.00736484]
[1645360943726,0.0133025,2644.6,2644.0,1.89216]
[1645360943727,0.9724246,2644.6,2644.0,1.89216]
[1645360944026,8.2791221,2644.7,2644.0,1.89216]
[1645360944224,8.2791221,2644.7,2644.1,0.88728014]
[1645360944225,0.01330267,2644.6,2644.1,0.88728014]
[1645360945079,8.2791221,2644.7,2644.1,1.83341054]
[1645360945274,0.9591221,2644.7,2644.1,1.83341054]
[1645360945475,0.00266069,2644.6,2644.1,0.9461304]
[1645360945676,0.00266069,2644.6,2644.0,4.7304167]
[1645360945875,0.9591221,2644.4,2644.0,4.7304167]
[1645360946073,0.9591221,2644.5,2644.0,4.7304167]
[1645360947077,1.11629395,2644.4,2644.0,4.7304167]
[1645360947583,0.9591221,2644.5,2644.0,4.7304167]
[1645360947778,0.96178269,2644.6,2644.0,4.7304167]
[1645360948378,0.9591221,2644.5,2644.0,4.7304167]
[1645360948579,2.04410761,2644.4,2644.0,4.7304167]
[1645360948822,2.04410761,2644.4,2644.0,0.94611]
[1645360949019,2.04410761,2644.4,2643.9,0.00736484]
[1645360950020,2.04410761,2644.4,2643.9,0.95359484]
[1645360951122,0.9591221,2644.5,2643.9,0.95359484]
[1645360951522,0.01140087,2644.4,2643.9,0.95359484]
[1645360951923,0.01140087,2644.4,2644.2,0.00702235]
[1645360952122,0.9591221,2644.5,2644.2,0.00702235]
[1645360952324,0.9591221,2644.5,2644.2,0.95313395]
[1645360952583,2.03714261,2644.6,2644.2,1.89923395]
[1645360952777,1.06661964,2644.6,2644.2,3.79132395]
[1645360952975,2.02574174,2644.6,2644.2,1.89911235]
[1645360953475,2.02308108,2644.6,2644.2,0.00702235]
[1645360953674,0.9591221,2644.5,2644.2,0.00702235]
[1645360953974,0.97052297,2644.5,2644.2,0.00702235]
[1645360956428,0.97052297,2644.5,2644.2,1.89919035]
[1645360956627,0.01140087,2644.5,2644.2,1.89919035]
[1645360956825,0.96178279,2644.6,2644.3,0.94605]
[1645360957024,0.01140087,2644.5,2644.3,0.94605]
[1645360957224,0.9591221,2644.6,2644.3,0.94605]
[1645360957430,0.00243883,2644.6,2644.3,0.94605]
[1645360957824,0.0138397,2644.6,2644.2,0.95312235]
[1645360958031,0.0138397,2644.6,2644.2,0.00702235]
[1645360958225,0.01140087,2644.6,2644.2,0.00702235]
[1645360958627,0.01383973,2644.6,2644.2,0.00702235]
[1645360958925,0.01383973,2644.6,2644.2,1.89919365]
[1645360959426,0.01140087,2644.6,2644.2,1.89919365]
[1645360959626,0.01140087,2644.7,2644.2,1.89919365]
[1645360959828,0.00243886,2644.6,2644.2,1.89919365]
[1645360960477,0.00243886,2644.6,2644.3,0.94605]
[1645360960681,0.01140087,2644.7,2644.3,0.94605]
[1645360960878,0.00243886,2644.6,2644.3,0.94605]
[1645360961477,0.00243886,2644.6,2644.2,0.95311235]
[1645360961678,0.00243886,2644.6,2644.2,0.00702235]
[1645360961881,0.9591221,2644.6,2644.2,0.00702235]
[1645360962280,1.14287006,2644.4,2644.2,0.00702235]
[1645360962478,0.01140087,2644.5,2644.2,0.00702235]
[1645360962679,0.96157555,2644.6,2644.2,0.00702235]
[1645360962881,0.01140087,2644.5,2644.2,0.00702235]
[1645360963082,0.97052297,2644.7,2644.2,0.95310235]
[1645360963580,0.00245345,2644.6,2644.3,0.94605]
[1645360964226,0.01385432,2644.6,2644.3,0.94605]
[1645360964427,0.95957518,2644.7,2644.3,0.94605]
[1645360964627,0.01385435,2644.6,2644.3,0.94605]
[1645360964823,0.00245348,2644.6,2644.3,0.94605]
[1645360965022,0.01385435,2644.6,2644.3,0.94605]
[1645360965324,0.00245348,2644.6,2644.3,0.94605]
[1645360965524,0.95957518,2644.7,2644.3,0.94605]
[1645360965724,0.0138534,2644.6,2644.3,0.94605]
[1645360965927,0.00245253,2644.6,2644.3,0.94605]
[1645360966526,0.00245253,2644.6,2644.3,3.783921]
[1645360966724,0.97052297,2645.0,2644.3,3.783921]
[1645360966926,0.00226384,2644.6,2644.4,0.00701434]
[1645360967977,0.97052297,2645.0,2644.4,0.00701434]
[1645360968180,0.00226387,2644.6,2644.4,0.00701434]
[1645360969076,0.97052297,2645.0,2644.4,0.00701434]
[1645360969277,0.01140087,2645.0,2644.4,0.00701434]
[1645360969476,0.00227025,2644.6,2644.4,0.00701434]
[1645360970279,0.97052297,2645.0,2644.4,0.00701434]
[1645360970679,0.00227025,2644.6,2644.4,0.00701434]
[1645360970879,0.00227025,2644.6,2644.4,1.05463928]
[1645360971086,0.00227025,2644.6,2644.4,2.00057928]
[1645360971529,2.1729221,2645.2,2644.6,1.8918]
[1645360971530,0.01140087,2645.1,2644.6,1.8918]
[1645360971929,0.00918915,2645.0,2644.6,1.8918]
[1645360972827,0.01140087,2645.2,2644.6,1.8918]
[1645360973030,0.0022969,2644.9,2644.6,1.8918]
[1645360973930,0.01140087,2645.2,2644.6,1.8918]
[1645360974128,0.00229691,2644.9,2644.6,1.8918]
[1645360975188,0.01140087,2645.2,2644.6,13.44089583]
[1645360975487,0.01140087,2645.2,2644.8,0.9456793]
[1645360975679,0.00917033,2645.3,2645.0,0.94573]
[1645360976087,0.00917033,2645.3,2645.1,1.05953237]
[1645360976286,0.01140087,2645.6,2645.1,1.05953237]
[1645360976683,0.97052297,2645.6,2645.0,0.94573]
[1645360976881,0.9591221,2645.5,2644.8,0.368]
[1645360977081,0.9591221,2645.3,2644.8,0.368]
[1645360977280,0.9591221,2645.4,2644.8,0.368]
[1645360977481,0.01140087,2645.3,2644.8,0.368]
[1645360977886,0.96187408,2645.1,2644.8,0.368]
[1645360979124,0.97327495,2645.1,2644.8,0.368]
[1645360979724,1.93239705,2645.1,2644.8,0.368]
[1645360979924,0.96187408,2645.1,2644.8,0.368]
[1645360980128,1.92365908,2645.1,2644.8,0.368]
[1645360980325,3.5,2645.0,2644.8,0.368]
[1645360980524,0.9591221,2644.9,2644.8,0.368]
[1645360981727,0.00266289,2645.0,2644.8,0.368]
[1645360981932,0.96178499,2645.0,2644.8,0.368]
[1645360982127,0.00266289,2645.0,2644.8,0.36155647]
[1645360982327,1.92099618,2645.1,2644.8,0.36155647]
[1645360982571,0.00266292,2645.0,2644.8,0.36155647]
[1645360983173,0.96178502,2645.0,2644.8,0.36155647]
[1645360983574,0.9591221,2645.0,2644.8,0.36155647]
[1645360983774,0.00266292,2645.0,2644.8,0.36155647]
[1645360983974,0.96178502,2645.0,2644.8,0.36155647]
[1645360984773,0.9591221,2645.0,2644.8,0.36155647]
[1645360984973,0.96178502,2645.0,2644.8,0.36155647]
[1645360985977,0.9591221,2645.0,2644.8,0.36155647]
[1645360986178,0.96178502,2645.0,2644.8,0.36155647]
[1645360986427,0.9591221,2644.9,2644.8,0.36155647]
[1645360986832,0.9591221,2644.9,2644.6,0.579006]
[1645360987030,0.9591221,2644.9,2644.8,0.00695761]
[1645360988632,0.96178499,2645.0,2644.8,0.00695761]
[1645360989233,0.9582932,2644.9,2644.8,0.00695761]
[1645360990488,0.00266289,2645.0,2644.8,0.00695761]
[1645360990888,2.40771991,2645.1,2644.8,0.00695761]
[1645360991085,1.44850872,2645.0,2644.8,0.00695761]
[1645360991484,0.95855293,2644.9,2644.8,0.00695761]
[1645360991685,0.00266289,2645.0,2644.6,0.579006]
[1645360991885,0.95854562,2644.8,2644.6,0.579006]
[1645360992487,0.87901286,2644.7,2644.6,0.579006]
[1645360992991,4.37901286,2644.7,2644.6,0.30002867]
[1645360994026,0.87901286,2644.7,2644.6,0.30002867]
[1645360994227,2.3166492,2644.7,2644.6,0.30002867]
[1645360995027,4.37901286,2644.7,2644.6,0.30002867]
[1645360995426,6.2902632,2644.7,2644.6,0.30002867]
[1645360995627,4.37901286,2644.7,2644.6,0.30002867]
[1645360995828,6.2902632,2644.7,2644.6,0.30002867]
[1645360996028,2.7902632,2644.7,2644.6,0.30002867]
[1645360996928,6.2902632,2644.7,2644.6,0.30002867]
[1645360997574,2.7902632,2644.7,2644.6,0.30002867]
[1645360997778,6.2902632,2644.7,2644.6,0.30002867]
[1645360997979,2.7902632,2644.7,2644.6,0.30002867]
[1645360998376,4.37901286,2644.7,2644.6,0.30002867]
[1645360998579,2.7902632,2644.7,2644.6,0.30002867]
[1645360999376,0.87901286,2644.7,2644.6,0.1404954]
[1645361000177,2.7902632,2644.7,2644.6,0.1404954]
[1645361000378,0.87901286,2644.7,2644.6,0.1404954]
[1645361001435,0.87901286,2644.7,2644.6,0.10675647]
[1645361001436,0.95940271,2644.7,2644.6,0.10675647]
[1645361002031,4.45940271,2644.7,2644.6,0.10675647]
[1645361002631,0.95940271,2644.7,2644.6,0.10675647]
[1645361003333,4.45940271,2644.7,2644.6,0.10675647]
[1645361003531,0.95940271,2644.7,2644.6,0.10675647]
[1645361003930,4.45940271,2644.7,2644.6,0.10675647]
[1645361004131,0.95940271,2644.7,2644.6,0.10675647]
[1645361004431,4.45940271,2644.7,2644.6,0.10675647]
[1645361004636,4.45940271,2644.7,2643.1,1.89570469]
[1645361004637,24.0,2644.6,2643.1,1.89570469]
[1645361004837,0.71795,2643.4,2643.1,0.00266469]
[1645361005087,5.95726666,2643.7,2643.1,0.00266469]
[1645361005088,0.71795,2643.2,2643.1,0.00266469]
[1645361005283,0.71795,2643.2,2642.6,1.55162431]
[1645361005487,1.03765651,2643.4,2643.1,0.00266378]
[1645361005679,1.90178322,2643.2,2643.1,0.00266378]
[1645361005880,1.98217307,2643.2,2643.1,0.00266378]
[1645361006081,1.26434525,2643.2,2643.1,0.00266378]
[1645361006280,2.21883677,2643.2,2643.1,0.00266378]
[1645361006479,2.21883677,2643.2,2642.1,0.3727]
[1645361006480,3.42173677,2643.2,2642.1,0.3727]
[1645361006684,0.79629038,2643.1,2643.0,0.00266381]
[1645361007081,0.08038985,2643.1,2643.0,0.00266381]
[1645361007280,3.58038985,2643.1,2643.0,0.00266381]
[1645361007683,3.58038985,2643.1,2642.1,0.3727]
[1645361007881,0.79615589,2643.0,2642.9,0.00266385]
[1645361008280,0.08038985,2643.0,2642.9,0.00266385]
[1645361008684,0.79615589,2643.1,2642.9,0.00266385]
[1645361008936,0.89761306,2642.6,2642.1,0.3727]
[1645361009238,0.08038985,2642.5,2642.1,0.3727]
[1645361010031,0.89761306,2642.6,2642.1,0.3727]
[1645361010235,0.89761306,2642.6,2642.2,0.00258418]
[1645361011232,0.89761306,2642.6,2642.1,0.3727]
[1645361011434,1.1558,2642.9,2642.3,0.00258414]
[1645361011635,0.1892,2643.2,2642.3,0.00258414]
[1645361011835,0.09440584,2643.1,2642.3,0.00258414]
[1645361012043,0.09440584,2643.0,2642.9,0.0070454]
[1645361012588,0.89149883,2643.6,2642.9,0.85511385]
[1645361012786,0.09428602,2643.5,2642.9,0.85511385]
[1645361013192,0.09428602,2643.5,2642.9,0.91321016]
[1645361013383,0.09428602,2643.5,2642.9,0.9535854]
[1645361013785,0.89149883,2643.6,2642.9,0.9535854]
[1645361013982,0.89149883,2643.6,2643.1,0.00247917]
[1645361014784,0.09424525,2643.5,2642.9,4.4535854]
[1645361014985,0.09424525,2643.5,2642.9,0.9535854]
[1645361015184,0.80574408,2643.6,2643.1,0.00247923]
[1645361015990,0.80574408,2643.6,2642.9,0.9535854]
[1645361016446,0.80574408,2643.6,2643.1,0.00249452]
[1645361017049,4.1069,2643.9,2643.2,0.95351728]
[1645361017249,1.1496,2643.9,2643.4,0.94637]
[1645361017449,0.71576604,2644.2,2643.4,0.94637]
[1645361018551,0.91799937,2644.1,2643.3,0.93134375]
[1645361018949,0.91799937,2644.1,2643.2,0.00703728]
[1645361019749,0.91799937,2644.1,2643.2,3.50703728]
[1645361020198,0.91799937,2644.1,2643.2,4.44574132]
[1645361020398,0.91799937,2644.1,2643.4,0.94639]
[1645361021499,0.91799937,2644.1,2643.3,0.72562023]
[1645361022299,0.91799937,2644.1,2643.5,0.00702916]
[1645361022699,0.91799937,2644.1,2643.5,1.14350593]
[1645361022900,0.91799937,2644.1,2643.5,0.00702916]
[1645361024430,1.63376541,2644.1,2643.5,0.00702916]
[1645361025929,0.71576604,2644.0,2643.5,0.00702916]
[1645361026725,0.91799937,2644.1,2643.5,0.00702916]
[1645361026726,0.71576604,2643.9,2643.5,0.00702916]
[1645361026925,0.71576604,2643.9,2642.9,0.58565285]
[1645361027577,0.97911118,2643.3,2642.9,0.00702105]
[1645361030181,1.92146604,2643.8,2642.9,0.00702105]
[1645361030579,1.92146604,2643.8,2643.1,1.89299]
[1645361030779,0.71576604,2643.8,2643.1,1.89299]
[1645361030984,0.71576604,2643.8,2643.1,2.839414]
[1645361031182,0.71576604,2643.9,2643.1,2.839414]
[1645361031429,1.04834733,2643.7,2643.1,2.839414]
[1645361031830,1.04834733,2643.7,2643.1,2.84902012]
[1645361032829,1.04834733,2643.7,2643.1,2.84645534]
[1645361033031,1.04834733,2643.7,2643.1,1.90247443]
[1645361034130,1.04834733,2643.7,2643.1,1.90003134]
[1645361034330,1.04834733,2643.7,2643.1,1.90247443]
[1645361034731,1.76411337,2643.7,2643.1,1.90247443]
[1645361035174,1.76411337,2643.7,2643.1,1.90003134]
[1645361035379,0.08869298,2643.6,2643.1,1.90003134]
[1645361035577,0.08869298,2643.6,2643.1,1.90247443]
[1645361036278,0.08869298,2643.6,2643.1,1.69570093]
[1645361036476,0.08869298,2643.6,2643.1,1.69325784]
[1645361036673,0.08869298,2643.6,2643.1,1.69570903]
[1645361037675,0.08869298,2643.6,2643.1,1.69325784]
[1645361037875,0.08869298,2643.6,2643.1,1.69570903]
[1645361038935,0.08869298,2643.6,2643.1,0.74676784]
[1645361039132,0.08869298,2643.6,2643.1,0.74921903]
[1645361040028,0.08869298,2643.6,2643.1,0.74676784]
[1645361040227,0.08869298,2643.6,2643.1,0.74921849]
[1645361041228,0.08869298,2643.6,2643.1,0.74676784]